[Event "Titled Tuesday Blitz May 10 Early 2022"]
[White "Buscar, Michael"]
[Black "Ianov, Viktor"]
[WhiteFideId "2603616"]
[BlackFideId "14102730"]
[WhiteElo "2010"]
[BlackElo "2152"]
[Result "1/2-1/2"]
[Round "09"]
[TimeControl "180+1"]
[Date "2022.05.11"]
[WhiteClock "0:00:12"]
[BlackClock "0:00:38"]

1. d4 {[%clk 0:03:00]}  d6 {[%clk 0:02:59]} 2. c4 {[%clk 0:02:58]}  g6 {[%clk 0:02:59]} 3. Nf3 {[%clk 0:02:58]}  Bg7 {[%clk 0:02:59]} 4. g3 {[%clk 0:02:59]}  Nf6 {[%clk 0:02:58]} 5. Bg2 {[%clk 0:02:59]}  O-O {[%clk 0:02:58]} 6. O-O {[%clk 0:03:00]}  c6 {[%clk 0:02:58]} 7. b3 {[%clk 0:02:57]}  Bf5 {[%clk 0:02:57]} 8. Bb2 {[%clk 0:02:58]}  a5 {[%clk 0:02:57]} 9. Nc3 {[%clk 0:02:50]}  Ne4 {[%clk 0:02:56]} 10. Nxe4 {[%clk 0:02:42]}  Bxe4 {[%clk 0:02:55]} 11. Nd2 {[%clk 0:02:39]}  Bxg2 {[%clk 0:02:54]} 12. Kxg2 {[%clk 0:02:40]}  d5 {[%clk 0:02:54]} 13. cxd5 {[%clk 0:02:37]}  cxd5 {[%clk 0:02:53]} 14. Rc1 {[%clk 0:02:27]}  Nc6 {[%clk 0:02:53]} 15. Nf3 {[%clk 0:02:19]}  e6 {[%clk 0:02:52]} 16. e3 {[%clk 0:02:17]}  a4 {[%clk 0:02:52]} 17. Ba3 {[%clk 0:02:05]}  Re8 {[%clk 0:02:50]} 18. bxa4 {[%clk 0:01:56]}  Qa5 {[%clk 0:02:49]} 19. Bc5 {[%clk 0:01:52]}  Qxa4 {[%clk 0:02:48]} 20. Rb1 {[%clk 0:01:49]}  Qxa2 {[%clk 0:02:36]} 21. Rxb7 {[%clk 0:01:47]}  Na5 {[%clk 0:02:35]} 22. Rb1 {[%clk 0:01:28]}  Nc4 {[%clk 0:02:34]} 23. Qb3 {[%clk 0:01:28]}  h5 {[%clk 0:02:20]} 24. Ng5 {[%clk 0:01:12]}  Qxb3 {[%clk 0:02:05]} 25. Rxb3 {[%clk 0:01:10]}  Nd2 {[%clk 0:02:05]} 26. Rb7 {[%clk 0:01:07]}  Nxf1 {[%clk 0:02:03]} 27. Kxf1 {[%clk 0:01:06]}  f6 {[%clk 0:02:01]} 28. Nf3 {[%clk 0:00:55]}  g5 {[%clk 0:02:01]} 29. h4 {[%clk 0:00:50]}  g4 {[%clk 0:02:00]} 30. Ne1 {[%clk 0:00:44]}  Reb8 {[%clk 0:01:58]} 31. Rxb8+ {[%clk 0:00:38]}  Rxb8 {[%clk 0:01:58]} 32. Nd3 {[%clk 0:00:39]}  Bh6 {[%clk 0:01:55]} 33. Bd6 {[%clk 0:00:35]}  Rb6 {[%clk 0:01:51]} 34. Bf4 {[%clk 0:00:30]}  Bf8 {[%clk 0:01:51]} 35. Ke2 {[%clk 0:00:25]}  Kf7 {[%clk 0:01:43]} 36. Bc7 {[%clk 0:00:24]}  Rc6 {[%clk 0:01:40]} 37. Ba5 {[%clk 0:00:20]}  Rc2+ {[%clk 0:01:36]} 38. Kf1 {[%clk 0:00:18]}  Bd6 {[%clk 0:01:34]} 39. Bb4 {[%clk 0:00:17]}  Bxb4 {[%clk 0:01:26]} 40. Nxb4 {[%clk 0:00:17]}  Rc1+ {[%clk 0:01:25]} 41. Kg2 {[%clk 0:00:18]}  Kg6 {[%clk 0:01:24]} 42. Nd3 {[%clk 0:00:18]}  Rc6 {[%clk 0:01:18]} 43. Nf4+ {[%clk 0:00:18]}  Kh6 {[%clk 0:01:18]} 44. Kf1 {[%clk 0:00:18]}  Rd6 {[%clk 0:01:18]} 45. Ke2 {[%clk 0:00:18]}  e5 {[%clk 0:01:18]} 46. dxe5 {[%clk 0:00:18]}  fxe5 {[%clk 0:01:18]} 47. Nd3 {[%clk 0:00:18]}  Re6 {[%clk 0:01:18]} 48. Nc5 {[%clk 0:00:18]}  Rb6 {[%clk 0:01:16]} 49. Nd7 {[%clk 0:00:16]}  Rb2+ {[%clk 0:01:15]} 50. Kf1 {[%clk 0:00:16]}  e4 {[%clk 0:01:15]} 51. Nc5 {[%clk 0:00:14]}  Kg6 {[%clk 0:01:14]} 52. Ne6 {[%clk 0:00:14]}  Rd2 {[%clk 0:01:12]} 53. Nf4+ {[%clk 0:00:14]}  Kh6 {[%clk 0:01:12]} 54. Ke1 {[%clk 0:00:13]}  Ra2 {[%clk 0:01:11]} 55. Ne6 {[%clk 0:00:13]}  Ra1+ {[%clk 0:01:07]} 56. Ke2 {[%clk 0:00:12]}  Ra5 {[%clk 0:01:07]} 57. Nd4 {[%clk 0:00:12]}  Kg6 {[%clk 0:01:06]} 58. Ne6 {[%clk 0:00:12]}  Kf6 {[%clk 0:01:06]} 59. Nf4 {[%clk 0:00:12]}  Ke5 {[%clk 0:01:06]} 60. Nxh5 {[%clk 0:00:12]}  Ra2+ {[%clk 0:01:05]} 61. Kf1 {[%clk 0:00:13]}  d4 {[%clk 0:01:05]} 62. exd4+ {[%clk 0:00:13]}  Kxd4 {[%clk 0:01:05]} 63. Nf6 {[%clk 0:00:12]}  e3 {[%clk 0:01:05]} 64. fxe3+ {[%clk 0:00:12]}  Kxe3 {[%clk 0:01:05]} 65. Nxg4+ {[%clk 0:00:13]}  Kf3 {[%clk 0:01:05]} 66. Ne5+ {[%clk 0:00:13]}  Kxg3 {[%clk 0:01:05]} 67. h5 {[%clk 0:00:14]}  Ra5 {[%clk 0:01:05]} 68. Nd3 {[%clk 0:00:13]}  Rxh5 {[%clk 0:01:04]} 69. Ke2 {[%clk 0:00:14]}  Rd5 {[%clk 0:01:03]} 70. Ke3 {[%clk 0:00:13]}  Ra5 {[%clk 0:01:03]} 71. Ke4 {[%clk 0:00:13]}  Ra4+ {[%clk 0:01:03]} 72. Ke3 {[%clk 0:00:13]}  Ra3 {[%clk 0:01:03]} 73. Ke4 {[%clk 0:00:14]}  Ra1 {[%clk 0:01:03]} 74. Ne5 {[%clk 0:00:13]}  Re1+ {[%clk 0:01:02]} 75. Kd4 {[%clk 0:00:13]}  Ra1 {[%clk 0:01:02]} 76. Ke4 {[%clk 0:00:14]}  Ra4+ {[%clk 0:01:01]} 77. Ke3 {[%clk 0:00:11]}  Kh4 {[%clk 0:01:01]} 78. Nd3 {[%clk 0:00:11]}  Kg5 {[%clk 0:01:01]} 79. Nc5 {[%clk 0:00:11]}  Ra5 {[%clk 0:01:00]} 80. Kd4 {[%clk 0:00:11]}  Kf5 {[%clk 0:01:00]} 81. Nd3 {[%clk 0:00:11]}  Ra1 {[%clk 0:01:00]} 82. Nc5 {[%clk 0:00:11]}  Rd1+ {[%clk 0:00:59]} 83. Kc4 {[%clk 0:00:11]}  Ke5 {[%clk 0:00:59]} 84. Nb3 {[%clk 0:00:10]}  Kd6 {[%clk 0:00:59]} 85. Nd4 {[%clk 0:00:10]}  Rh1 {[%clk 0:00:59]} 86. Nb3 {[%clk 0:00:10]}  Rh4+ {[%clk 0:00:57]} 87. Kd3 {[%clk 0:00:11]}  Kd5 {[%clk 0:00:56]} 88. Nd2 {[%clk 0:00:11]}  Rh3+ {[%clk 0:00:56]} 89. Ke2 {[%clk 0:00:11]}  Kd4 {[%clk 0:00:55]} 90. Nf3+ {[%clk 0:00:11]}  Kc3 {[%clk 0:00:55]} 91. Kf2 {[%clk 0:00:10]}  Kd3 {[%clk 0:00:53]} 92. Kg2 {[%clk 0:00:11]}  Rh8 {[%clk 0:00:53]} 93. Kf2 {[%clk 0:00:11]}  Ke4 {[%clk 0:00:52]} 94. Nd2+ {[%clk 0:00:10]}  Kf4 {[%clk 0:00:53]} 95. Nf1 {[%clk 0:00:10]}  Ra8 {[%clk 0:00:50]} 96. Ke2 {[%clk 0:00:09]}  Ra1 {[%clk 0:00:49]} 97. Nd2 {[%clk 0:00:09]}  Ra2 {[%clk 0:00:49]} 98. Kd3 {[%clk 0:00:10]}  Ra3+ {[%clk 0:00:50]} 99. Kc4 {[%clk 0:00:10]}  Ra2 {[%clk 0:00:49]} 100. Nb3 {[%clk 0:00:10]}  Ke3 {[%clk 0:00:48]} 101. Nc5 {[%clk 0:00:10]}  Rc2+ {[%clk 0:00:48]} 102. Kd5 {[%clk 0:00:11]}  Rc1 {[%clk 0:00:48]} 103. Ne6 {[%clk 0:00:11]}  Rd1+ {[%clk 0:00:47]} 104. Ke5 {[%clk 0:00:11]}  Ra1 {[%clk 0:00:47]} 105. Nf4 {[%clk 0:00:10]}  Ra5+ {[%clk 0:00:47]} 106. Nd5+ {[%clk 0:00:11]}  Kd3 {[%clk 0:00:43]} 107. Ke6 {[%clk 0:00:12]}  Kd4 {[%clk 0:00:44]} 108. Nc7 {[%clk 0:00:11]}  Ra7 {[%clk 0:00:43]} 109. Ne8 {[%clk 0:00:11]}  Kc5 {[%clk 0:00:42]} 110. Nf6 {[%clk 0:00:11]}  Ra6+ {[%clk 0:00:42]} 111. Ke5 {[%clk 0:00:11]}  Kc6 {[%clk 0:00:42]} 112. Ne4 {[%clk 0:00:11]}  Ra5+ {[%clk 0:00:40]} 113. Kd4 {[%clk 0:00:11]}  Ra4+ {[%clk 0:00:40]} 114. Ke5 {[%clk 0:00:12]}  Ra1 {[%clk 0:00:39]} 115. Kd4 {[%clk 0:00:12]}  Rd1+ {[%clk 0:00:39]} 116. Ke5 {[%clk 0:00:12]}  Re1 {[%clk 0:00:38]} 117. Kd4 {[%clk 0:00:13]}  Kd7 {[%clk 0:00:37]} 118. Ke5 {[%clk 0:00:12]}  Ke7 {[%clk 0:00:38]} 1/2-1/2


[Site "https://www.chess.com"]

[Event "Titled Tuesday Blitz May 10 Early 2022"]
[White "Cramling Bellon, Anna"]
[Black "Priyanka, K"]
[WhiteFideId "32009232"]
[BlackFideId "5082986"]
[WhiteElo "1905"]
[BlackElo "1905"]
[Result "0-1"]
[Round "09"]
[TimeControl "180+1"]
[Date "2022.05.11"]
[WhiteClock "0:00:03"]
[BlackClock "0:00:08"]

1. d4 {[%clk 0:02:39]}  Nf6 {[%clk 0:02:59]} 2. c4 {[%clk 0:02:34]}  g6 {[%clk 0:02:59]} 3. Nc3 {[%clk 0:02:32]}  Bg7 {[%clk 0:02:59]} 4. e4 {[%clk 0:02:32]}  d6 {[%clk 0:02:59]} 5. h3 {[%clk 0:02:31]}  O-O {[%clk 0:02:59]} 6. Bg5 {[%clk 0:02:24]}  h6 {[%clk 0:02:50]} 7. Be3 {[%clk 0:02:19]}  e5 {[%clk 0:02:48]} 8. d5 {[%clk 0:02:17]}  Nbd7 {[%clk 0:02:48]} 9. Nf3 {[%clk 0:02:14]}  Nc5 {[%clk 0:02:42]} 10. Qc2 {[%clk 0:02:11]}  a5 {[%clk 0:02:41]} 11. Be2 {[%clk 0:02:11]}  Nh5 {[%clk 0:02:37]} 12. g3 {[%clk 0:02:11]}  f5 {[%clk 0:02:32]} 13. Nh4 {[%clk 0:01:58]}  Qf6 {[%clk 0:01:54]} 14. Bxh5 {[%clk 0:01:53]}  gxh5 {[%clk 0:01:54]} 15. Bxc5 {[%clk 0:01:44]}  dxc5 {[%clk 0:01:54]} 16. Qe2 {[%clk 0:01:29]}  f4 {[%clk 0:01:40]} 17. Qxh5 {[%clk 0:01:20]}  fxg3 {[%clk 0:01:40]} 18. f3 {[%clk 0:01:20]}  Qf4 {[%clk 0:01:25]} 19. Ne2 {[%clk 0:01:09]}  Qe3 {[%clk 0:01:19]} 20. Rg1 {[%clk 0:01:06]}  Qf2+ {[%clk 0:00:53]} 21. Kd2 {[%clk 0:00:45]}  Ra6 {[%clk 0:00:20]} 22. Rxg3 {[%clk 0:00:43]}  Raf6 {[%clk 0:00:12]} 23. Rag1 {[%clk 0:00:37]}  R8f7 {[%clk 0:00:11]} 24. Qxe5 {[%clk 0:00:16]}  Bd7 {[%clk 0:00:11]} 25. Qxf6 {[%clk 0:00:04]}  Rxf6 {[%clk 0:00:11]} 26. Rxg7+ {[%clk 0:00:04]}  Kf8 {[%clk 0:00:09]} 27. Rxd7 {[%clk 0:00:04]}  Qxh4 {[%clk 0:00:06]} 28. Rd8+ {[%clk 0:00:03]}  Ke7 {[%clk 0:00:06]} 29. Rgg8 {[%clk 0:00:02]}  Rxf3 {[%clk 0:00:05]} 30. Rge8+ {[%clk 0:00:02]}  Kf7 {[%clk 0:00:05]} 31. Rf8+ {[%clk 0:00:03]}  Kg7 {[%clk 0:00:05]} 32. Rde8 {[%clk 0:00:02]}  Rxf8 {[%clk 0:00:05]} 33. Rxf8 {[%clk 0:00:02]}  Kxf8 {[%clk 0:00:05]} 34. e5 {[%clk 0:00:02]}  Qg5+ {[%clk 0:00:05]} 35. Kd3 {[%clk 0:00:02]}  Qxe5 {[%clk 0:00:06]} 36. Nc3 {[%clk 0:00:02]}  Qd4+ {[%clk 0:00:06]} 37. Kc2 {[%clk 0:00:02]}  Qxc4 {[%clk 0:00:07]} 38. b3 {[%clk 0:00:02]}  Qd4 {[%clk 0:00:07]} 39. Nb5 {[%clk 0:00:02]}  Qxd5 {[%clk 0:00:07]} 40. Nxc7 {[%clk 0:00:03]}  Qe4+ {[%clk 0:00:07]} 41. Kc3 {[%clk 0:00:03]}  Qe5+ {[%clk 0:00:07]} 42. Kc4 {[%clk 0:00:03]}  Qxc7 {[%clk 0:00:08]} 43. Kb5 {[%clk 0:00:02]}  Qc6+ {[%clk 0:00:08]} 44. Kc4 {[%clk 0:00:03]}  b5+ {[%clk 0:00:08]} 0-1


[Site "https://www.chess.com"]

[Event "Titled Tuesday Blitz May 10 Early 2022"]
[White "Czerw, Dawid"]
[Black "Rastbod, Ali"]
[WhiteFideId "1145746"]
[BlackFideId "12567477"]
[WhiteElo "2125"]
[BlackElo "2147"]
[Result "0-1"]
[Round "09"]
[TimeControl "180+1"]
[Date "2022.05.11"]
[WhiteClock "0:00:01"]
[BlackClock "0:00:41"]

1. d4 {[%clk 0:03:00]}  Nf6 {[%clk 0:02:59]} 2. c4 {[%clk 0:03:00]}  e6 {[%clk 0:03:00]} 3. Nc3 {[%clk 0:03:00]}  Bb4 {[%clk 0:03:00]} 4. f3 {[%clk 0:03:01]}  d5 {[%clk 0:02:58]} 5. a3 {[%clk 0:03:01]}  Be7 {[%clk 0:02:59]} 6. e4 {[%clk 0:03:00]}  dxe4 {[%clk 0:03:00]} 7. fxe4 {[%clk 0:03:01]}  c5 {[%clk 0:03:00]} 8. d5 {[%clk 0:03:00]}  exd5 {[%clk 0:03:01]} 9. exd5 {[%clk 0:03:01]}  O-O {[%clk 0:03:01]} 10. h3 {[%clk 0:03:02]}  Bd6 {[%clk 0:03:00]} 11. Kf2 {[%clk 0:02:53]}  Nbd7 {[%clk 0:02:37]} 12. Nf3 {[%clk 0:02:51]}  h6 {[%clk 0:02:03]} 13. Bd3 {[%clk 0:02:50]}  Ne5 {[%clk 0:01:56]} 14. Nxe5 {[%clk 0:02:49]}  Bxe5 {[%clk 0:01:57]} 15. Be3 {[%clk 0:02:41]}  Qd6 {[%clk 0:01:54]} 16. Rf1 {[%clk 0:02:33]}  Bh2 {[%clk 0:01:52]} 17. Qf3 {[%clk 0:02:27]}  Re8 {[%clk 0:01:44]} 18. Rae1 {[%clk 0:02:04]}  Bd7 {[%clk 0:01:41]} 19. Ne4 {[%clk 0:01:33]}  Rxe4 {[%clk 0:01:27]} 20. Bxe4 {[%clk 0:01:34]}  Bg3+ {[%clk 0:01:27]} 21. Ke2 {[%clk 0:01:29]}  Re8 {[%clk 0:01:19]} 22. Bd3 {[%clk 0:01:22]}  Bxe1 {[%clk 0:01:11]} 23. Rxe1 {[%clk 0:01:23]}  b5 {[%clk 0:01:09]} 24. b3 {[%clk 0:01:15]}  bxc4 {[%clk 0:01:06]} 25. bxc4 {[%clk 0:01:16]}  Qe5 {[%clk 0:01:03]} 26. Kf2 {[%clk 0:01:10]}  Qb2+ {[%clk 0:00:59]} 27. Re2 {[%clk 0:01:04]}  Qxa3 {[%clk 0:01:00]} 28. Bc2 {[%clk 0:00:38]}  Qc3 {[%clk 0:00:46]} 29. Bxc5 {[%clk 0:00:29]}  Qxc4 {[%clk 0:00:46]} 30. Rxe8+ {[%clk 0:00:25]}  Bxe8 {[%clk 0:00:47]} 31. Bxa7 {[%clk 0:00:10]}  Qxc2+ {[%clk 0:00:45]} 32. Kg1 {[%clk 0:00:07]}  Qc1+ {[%clk 0:00:40]} 33. Kf2 {[%clk 0:00:01]}  Qd2+ {[%clk 0:00:40]} 34. Kg1 {[%clk 0:00:01]}  Qxd5 {[%clk 0:00:41]} 0-1


[Site "https://www.chess.com"]

[Event "Titled Tuesday Blitz May 10 Early 2022"]
[White "Dang, Hoang Son"]
[Black "Ajay Krishna, S"]
[WhiteFideId "12402435"]
[BlackFideId "5096430"]
[WhiteElo "2252"]
[BlackElo "2247"]
[Result "1-0"]
[Round "09"]
[TimeControl "180+1"]
[Date "2022.05.11"]
[WhiteClock "0:01:02"]
[BlackClock "0:00:30"]

1. d4 {[%clk 0:03:00]}  d5 {[%clk 0:02:59]} 2. Bf4 {[%clk 0:03:00]}  e6 {[%clk 0:02:58]} 3. e3 {[%clk 0:03:01]}  Bd6 {[%clk 0:02:58]} 4. Nf3 {[%clk 0:02:55]}  Bxf4 {[%clk 0:02:53]} 5. exf4 {[%clk 0:02:56]}  Nf6 {[%clk 0:02:53]} 6. Bd3 {[%clk 0:02:53]}  O-O {[%clk 0:02:52]} 7. Nbd2 {[%clk 0:02:49]}  b6 {[%clk 0:02:51]} 8. Ne5 {[%clk 0:02:48]}  Bb7 {[%clk 0:02:51]} 9. Qe2 {[%clk 0:02:45]}  c5 {[%clk 0:02:49]} 10. c3 {[%clk 0:02:45]}  cxd4 {[%clk 0:02:47]} 11. cxd4 {[%clk 0:02:46]}  Nc6 {[%clk 0:02:47]} 12. Ndf3 {[%clk 0:02:45]}  Nb4 {[%clk 0:02:43]} 13. O-O {[%clk 0:02:44]}  Qd6 {[%clk 0:02:30]} 14. Bb1 {[%clk 0:02:34]}  Ba6 {[%clk 0:02:27]} 15. Nd3 {[%clk 0:02:21]}  Nxd3 {[%clk 0:02:22]} 16. Bxd3 {[%clk 0:02:22]}  Bxd3 {[%clk 0:02:22]} 17. Qxd3 {[%clk 0:02:23]}  Qxf4 {[%clk 0:02:23]} 18. Rac1 {[%clk 0:02:16]}  Rfc8 {[%clk 0:02:19]} 19. Rc3 {[%clk 0:02:06]}  Ne4 {[%clk 0:02:13]} 20. Rxc8+ {[%clk 0:02:06]}  Rxc8 {[%clk 0:02:12]} 21. Qa6 {[%clk 0:02:07]}  Qb8 {[%clk 0:01:58]} 22. Ne5 {[%clk 0:02:05]}  h6 {[%clk 0:01:52]} 23. f3 {[%clk 0:01:59]}  Nf6 {[%clk 0:01:52]} 24. b4 {[%clk 0:01:57]}  b5 {[%clk 0:01:35]} 25. Nc6 {[%clk 0:01:50]}  Qc7 {[%clk 0:01:33]} 26. Rc1 {[%clk 0:01:49]}  Kh7 {[%clk 0:01:31]} 27. Qxb5 {[%clk 0:01:46]}  Ne8 {[%clk 0:01:25]} 28. Rc5 {[%clk 0:01:40]}  Qb6 {[%clk 0:01:07]} 29. Nxa7 {[%clk 0:01:26]}  Qxa7 {[%clk 0:01:06]} 30. Qd3+ {[%clk 0:01:25]}  f5 {[%clk 0:01:05]} 31. Rxc8 {[%clk 0:01:26]}  Nd6 {[%clk 0:01:03]} 32. Rc2 {[%clk 0:01:26]}  Nc4 {[%clk 0:01:03]} 33. Re2 {[%clk 0:01:25]}  Qb6 {[%clk 0:00:55]} 34. a3 {[%clk 0:01:24]}  g6 {[%clk 0:00:55]} 35. g4 {[%clk 0:01:15]}  fxg4 {[%clk 0:00:53]} 36. fxg4 {[%clk 0:01:16]}  Kg7 {[%clk 0:00:52]} 37. Kg2 {[%clk 0:01:13]}  Qa7 {[%clk 0:00:42]} 38. Rxe6 {[%clk 0:01:11]}  Qf7 {[%clk 0:00:39]} 39. Qe2 {[%clk 0:01:10]}  Kf8 {[%clk 0:00:37]} 40. a4 {[%clk 0:01:09]}  Nd2 {[%clk 0:00:28]} 41. Qf2 {[%clk 0:01:00]}  Qxf2+ {[%clk 0:00:27]} 42. Kxf2 {[%clk 0:01:01]}  Ne4+ {[%clk 0:00:28]} 43. Rxe4 {[%clk 0:01:00]}  dxe4 {[%clk 0:00:28]} 44. a5 {[%clk 0:01:01]}  Ke7 {[%clk 0:00:28]} 45. a6 {[%clk 0:01:01]}  Kd7 {[%clk 0:00:29]} 46. a7 {[%clk 0:01:02]}  Kc7 {[%clk 0:00:30]} 47. a8=Q {[%clk 0:01:02]} 1-0


[Site "https://www.chess.com"]

[Event "Titled Tuesday Blitz May 10 Early 2022"]
[White "De Silva, L M S T"]
[Black "Vasquez Schroeder, Rodrigo"]
[WhiteFideId "9953698"]
[BlackFideId "3400042"]
[WhiteElo "1631"]
[BlackElo "2567"]
[Result "0-1"]
[Round "09"]
[TimeControl "180+1"]
[Date "2022.05.10"]
[WhiteClock "0:00:03"]
[BlackClock "0:00:57"]

1. e4 {[%clk 0:03:00]}  c5 {[%clk 0:02:58]} 2. Nf3 {[%clk 0:03:00]}  d6 {[%clk 0:02:59]} 3. Bb5+ {[%clk 0:03:00]}  Nc6 {[%clk 0:02:58]} 4. O-O {[%clk 0:03:00]}  Bd7 {[%clk 0:02:58]} 5. Re1 {[%clk 0:03:00]}  Nf6 {[%clk 0:02:59]} 6. c3 {[%clk 0:03:00]}  a6 {[%clk 0:02:59]} 7. Bf1 {[%clk 0:03:01]}  Bg4 {[%clk 0:02:59]} 8. d4 {[%clk 0:03:02]}  Bxf3 {[%clk 0:02:57]} 9. gxf3 {[%clk 0:03:02]}  cxd4 {[%clk 0:02:56]} 10. cxd4 {[%clk 0:03:03]}  d5 {[%clk 0:02:56]} 11. e5 {[%clk 0:03:02]}  Nd7 {[%clk 0:02:54]} 12. f4 {[%clk 0:02:58]}  e6 {[%clk 0:02:53]} 13. Nc3 {[%clk 0:02:57]}  g6 {[%clk 0:02:53]} 14. Be3 {[%clk 0:02:55]}  Nb6 {[%clk 0:02:51]} 15. Bd3 {[%clk 0:02:52]}  Qd7 {[%clk 0:02:50]} 16. a3 {[%clk 0:02:49]}  Be7 {[%clk 0:02:47]} 17. Kh1 {[%clk 0:02:43]}  O-O {[%clk 0:02:47]} 18. Qg4 {[%clk 0:02:40]}  Kh8 {[%clk 0:02:47]} 19. Rac1 {[%clk 0:02:36]}  f5 {[%clk 0:02:40]} 20. Qe2 {[%clk 0:02:32]}  Rac8 {[%clk 0:02:39]} 21. b4 {[%clk 0:02:17]}  Na7 {[%clk 0:02:35]} 22. Rc2 {[%clk 0:02:15]}  Nc4 {[%clk 0:02:33]} 23. Bxc4 {[%clk 0:02:12]}  Rxc4 {[%clk 0:02:32]} 24. Rec1 {[%clk 0:02:13]}  Rfc8 {[%clk 0:02:32]} 25. Nd1 {[%clk 0:01:53]}  Nb5 {[%clk 0:02:26]} 26. Rxc4 {[%clk 0:01:18]}  dxc4 {[%clk 0:02:25]} 27. Nc3 {[%clk 0:01:17]}  Nxa3 {[%clk 0:02:23]} 28. d5 {[%clk 0:01:16]}  Nb5 {[%clk 0:02:12]} 29. d6 {[%clk 0:01:09]}  Bd8 {[%clk 0:02:11]} 30. Na4 {[%clk 0:00:57]}  Qc6+ {[%clk 0:02:04]} 31. Kg1 {[%clk 0:00:57]}  b6 {[%clk 0:02:01]} 32. d7 {[%clk 0:00:47]}  Qxd7 {[%clk 0:02:00]} 33. Rxc4 {[%clk 0:00:48]}  Rxc4 {[%clk 0:01:45]} 34. Qxc4 {[%clk 0:00:49]}  Qd1+ {[%clk 0:01:36]} 35. Kg2 {[%clk 0:00:48]}  Qxa4 {[%clk 0:01:37]} 36. Qxe6 {[%clk 0:00:36]}  Nc7 {[%clk 0:01:34]} 37. Qd6 {[%clk 0:00:24]}  Qe8 {[%clk 0:01:33]} 38. Bxb6 {[%clk 0:00:24]}  Ne6 {[%clk 0:01:31]} 39. Bxd8 {[%clk 0:00:22]}  Nxd8 {[%clk 0:01:30]} 40. Qxa6 {[%clk 0:00:23]}  Qc6+ {[%clk 0:01:26]} 41. Qxc6 {[%clk 0:00:22]}  Nxc6 {[%clk 0:01:27]} 42. b5 {[%clk 0:00:23]}  Nd8 {[%clk 0:01:28]} 43. Kf3 {[%clk 0:00:18]}  Kg7 {[%clk 0:01:28]} 44. Ke3 {[%clk 0:00:19]}  Kf7 {[%clk 0:01:28]} 45. Kd4 {[%clk 0:00:19]}  Ke6 {[%clk 0:01:22]} 46. Kc5 {[%clk 0:00:19]}  Kd7 {[%clk 0:01:22]} 47. Kb6 {[%clk 0:00:19]}  Ne6 {[%clk 0:01:18]} 48. Ka7 {[%clk 0:00:18]}  Nxf4 {[%clk 0:01:11]} 49. b6 {[%clk 0:00:19]}  Ne6 {[%clk 0:01:11]} 50. b7 {[%clk 0:00:18]}  Nd8 {[%clk 0:01:12]} 51. f4 {[%clk 0:00:04]}  h6 {[%clk 0:01:00]} 52. b8=N+ {[%clk 0:00:02]}  Kc7 {[%clk 0:00:58]} 53. Na6+ {[%clk 0:00:02]}  Kc6 {[%clk 0:00:58]} 54. Nb8+ {[%clk 0:00:02]}  Kd5 {[%clk 0:00:58]} 55. Kb6 {[%clk 0:00:02]}  Ne6 {[%clk 0:00:57]} 56. Nd7 {[%clk 0:00:03]}  Nxf4 {[%clk 0:00:57]} 57. Kc7 {[%clk 0:00:03]}  Ke6 {[%clk 0:00:57]} 58. Kc6 {[%clk 0:00:03]}  g5 {[%clk 0:00:57]} 59. Kc5 {[%clk 0:00:03]}  Kxd7 {[%clk 0:00:57]} 0-1


[Site "https://www.chess.com"]

[Event "Titled Tuesday Blitz May 10 Early 2022"]
[White "De Souza, Cristiano Gomes"]
[Black "Miszler, Levente"]
[WhiteFideId "2151758"]
[BlackFideId "763276"]
[WhiteElo "2068"]
[BlackElo "1966"]
[Result "1-0"]
[Round "09"]
[TimeControl "180+1"]
[Date "2022.05.11"]
[WhiteClock "0:01:04"]
[BlackClock "0:00:13"]

1. d4 {[%clk 0:03:00]}  Nf6 {[%clk 0:02:58]} 2. c4 {[%clk 0:02:58]}  g6 {[%clk 0:02:59]} 3. Nc3 {[%clk 0:02:56]}  Bg7 {[%clk 0:03:00]} 4. e4 {[%clk 0:02:54]}  d6 {[%clk 0:02:59]} 5. Nf3 {[%clk 0:02:55]}  O-O {[%clk 0:02:59]} 6. Be2 {[%clk 0:02:55]}  Nbd7 {[%clk 0:03:00]} 7. O-O {[%clk 0:02:56]}  e5 {[%clk 0:03:00]} 8. Be3 {[%clk 0:02:54]}  h6 {[%clk 0:02:58]} 9. h3 {[%clk 0:02:50]}  exd4 {[%clk 0:02:51]} 10. Nxd4 {[%clk 0:02:49]}  Nc5 {[%clk 0:02:52]} 11. f3 {[%clk 0:02:47]}  Re8 {[%clk 0:02:45]} 12. b4 {[%clk 0:02:45]}  Ne6 {[%clk 0:02:46]} 13. Nxe6 {[%clk 0:02:45]}  Bxe6 {[%clk 0:02:46]} 14. Rc1 {[%clk 0:02:44]}  Nd7 {[%clk 0:02:46]} 15. a4 {[%clk 0:02:42]}  a5 {[%clk 0:02:27]} 16. b5 {[%clk 0:02:38]}  Nc5 {[%clk 0:02:26]} 17. Qd2 {[%clk 0:02:25]}  Nb3 {[%clk 0:02:19]} 18. Qc2 {[%clk 0:02:19]}  Nxc1 {[%clk 0:02:16]} 19. Rxc1 {[%clk 0:02:20]}  Qf6 {[%clk 0:01:58]} 20. Qd2 {[%clk 0:02:19]}  Rad8 {[%clk 0:01:54]} 21. Bxh6 {[%clk 0:02:13]}  Qd4+ {[%clk 0:01:47]} 22. Be3 {[%clk 0:02:07]}  Qxd2 {[%clk 0:01:47]} 23. Bxd2 {[%clk 0:02:06]}  c6 {[%clk 0:01:47]} 24. Kf2 {[%clk 0:02:02]}  d5 {[%clk 0:01:46]} 25. cxd5 {[%clk 0:02:01]}  cxd5 {[%clk 0:01:46]} 26. exd5 {[%clk 0:01:59]}  Bxd5 {[%clk 0:01:46]} 27. Nxd5 {[%clk 0:01:58]}  Rxd5 {[%clk 0:01:45]} 28. Bxa5 {[%clk 0:01:56]}  Bd4+ {[%clk 0:01:38]} 29. Kf1 {[%clk 0:01:54]}  Bb2 {[%clk 0:01:25]} 30. Rc2 {[%clk 0:01:49]}  Ba3 {[%clk 0:01:23]} 31. Bb6 {[%clk 0:01:45]}  Rd6 {[%clk 0:01:20]} 32. Bf2 {[%clk 0:01:42]}  Red8 {[%clk 0:01:18]} 33. a5 {[%clk 0:01:40]}  Rd2 {[%clk 0:01:15]} 34. Rxd2 {[%clk 0:01:35]}  Rxd2 {[%clk 0:01:16]} 35. a6 {[%clk 0:01:35]}  bxa6 {[%clk 0:01:13]} 36. bxa6 {[%clk 0:01:34]}  Ra2 {[%clk 0:01:10]} 37. Bc4 {[%clk 0:01:14]}  Ra1+ {[%clk 0:01:09]} 38. Ke2 {[%clk 0:01:14]}  Bd6 {[%clk 0:00:17]} 39. a7 {[%clk 0:01:11]}  Ra5 {[%clk 0:00:17]} 40. Bd5 {[%clk 0:01:07]}  Bc5 {[%clk 0:00:13]} 41. Bxc5 {[%clk 0:01:04]} 1-0


[Site "https://www.chess.com"]